Workbook

Sheet 2,5-jährig
A1: Bethmannschule
A2: Bankkaufmann/-frau Jahrgang 2025
A3: schulinterne Lernfeldverteilung 2,5-jähriger Ausbildungsdauer
A6: Beruflicher Lernbereich (Lernfelder) | D6: Phase | F6: I | H6: II | J6: III | L6: IV | N6: V | P6: VI | R6: Noch zu verteilen
D7: Datum | F7: 19.08.2025 - 02.10.2025 | H7: 02.02.2026 - 13.03.2026 | J7: 11.05.2026 - 26.06.2026 | L7: 23.11.2026 - 29.01.2027 | N7: 08.03.2027 - 30.04.2027 | P7: 18.10.-19.11 2027
D8: Anzahl der Wochen | F8: 7 | H8: 6 | J8: 7 | L8: 7 | N8: 6 | P8: 5
D9: Ferien | L9: Weihnachtsferien | N9: Osterferien
D10: GAP Teil 1
D11: GAP Teil 2
A12: LF | B12: Neu | D12: RLP | E12: BMS
A13: 1 | B13: 1. Jahr | C13: Die eigene Rolle im Betrieb und im Wirtschaftsleben mitgestalten | D13: 80 | E13: 90 | F13: 70 | G13: Privatrecht, Arbeitsrecht individual, Einkommensteuer | H13: 20 | I13: Arbeitsrecht kollektiv | R13: =E13-SUM(F13,H13,J13,L13,N13,P13) -> 0
A14: 2 | B14: 1. Jahr | C14: Konten für Privatkunden führen und den Zahlungsverkehr abwickeln | D14: 80 | E14: 80 | F14: 80 | R14: =E14-SUM(F14,H14,J14,L14,N14,P14) -> 0
A15: 3 | B15: 1. Jahr | C15: Konten für Geschäfts- und Firmenkunden führen und den Zahlungsverkehr abwickeln | D15: 60 | E15: 50 | F15: 30 | G15: Firmenkunden | H15: 20 | I15: Ausland | R15: 0
A16: 4 | B16: 1. Jahr | C16: Kunden über Anlagen auf Konten und staatlich gefördertes Sparen beraten | D16: 40 | E16: 50 | H16: 50 | R16: 0
A17: 5 | B17: 1. Jahr | C17: Allgemein-Verbraucherdarlehensverträge abschließen | D17: 60 | E17: 50 | H17: 50 | R17: 0
A18: 6 | B18: 2. Jahr | C18: Marktmodelle anwenden | D18: 40 | E18: 40 | J18: 40 | R18: 0
A19: 7 | B19: 2. Jahr | C19: Wertströme und Geschäftsprozesse erfassen und dokumentieren | D19: 60 | E19: 55 | H19: 15 | I19: Grundlagen | J19: 40 | K19: Bewertung | R19: 0
A20: 8 | B20: 2. Jahr | C20: Kunden über die Anlage in Finanzinstrumenten beraten | D20: 120 | E20: 145 | J20: 75 | K20: Festverzinsl. WP, Aktien | L20: 70 | M20: Kapitalertragsteuer, Derivate, Börse, Fonds | R20: 0
A21: 9 | B21: 2. Jahr | C21: Baufinanzierungen abschließen | D21: 60 | E21: 45 | L21: 45 | R21: 0
A22: 10 | B22: 3. Jahr | C22: Gesamtwirtschaftliche Einflüsse analysieren und beurteilen | D22: 80 | E22: 90 | L22: 35 | M22: Wi.Wachs., Außenwirt. GG, Preisniveaustab. | N22: 20 | O22: Geldpolitik | P22: 35 | Q22: Gerechte EK, Hoher Beschäftigungsstand, Umwelt | R22: 0
A23: 11 | B23: 3. Jahr | C23: Wertschöpfungsprozesse erfolgsorientiert steuern | D23: 80 | E23: 55 | L23: 30 | M23: Grundbegriffe, Gesamtbetriebskalkulation | N23: 25 | O23: Marktzinsmethode, Produkt- und Kundenkalkulation | R23: 0
A24: 12 | B24: 3. Jahr | C24: Kunden über Produkte der Vorsorge und Absicherung informieren | D24: 60 | E24: 50 | N24: 50 | R24: 0
A25: 13 | B25: 3. Jahr | C25: Finanzierungen für Geschäfts- und Firmenkunden abschließen | D25: 60 | E25: 60 | N25: 60 | R25: =E25-SUM(F25,H25,J25,L25,N25,P25) -> 0
A26: PV | B26: PV | C26: PV Gap I und GAP II | E26: 120 | J26: 25 | K26: PV GAP I | P26: 95 | Q26: PV GAP II | R26: 0
A27: Summe Plan-Std. | D27: =SUM(D13:D26) -> 880 | E27: =SUM(E13:E26) -> 980 | F27: =SUM(F13:F26) -> 180 | H27: =SUM(H13:H26) -> 155 | J27: =SUM(J13:J26) -> 180 | L27: =SUM(L13:L26) -> 180 | N27: =SUM(N13:N26) -> 155 | P27: =SUM(P13:P26) -> 130 | R27: 0
A28: Durchschnittliche Soll-Wochenstunden BBU ohne PV | E28: =E27/SUM(F8:Q8) -> 25.78947368 | F28: =F27/F8 -> 25.71428571 | H28: =H27/H8 -> 25.83333333 | J28: =J27/J8 -> 25.71428571 | L28: =L27/L8 -> 25.71428571 | N28: =N27/N8 -> 25.83333333 | P28: =P27/P8 -> 26
A30: Nötige Änderungen zur Gleichverteilung BBU | F30: =-(F28-$E$28)*F8 -> 0.5263157895 | H30: =-(H28-$E$28)*H8 -> -0.2631578947 | J30: =-(J28-$E$28)*J8 -> 0.5263157895 | L30: =-(L28-$E$28)*L8 -> 0.5263157895 | N30: =-(N28-$E$28)*N8 -> -0.2631578947 | P30: =-(P28-$E$28)*P8 -> -1.052631579
